Workbook

Sheet ORÇAMENTO
A1: <---- NUMERAR SERVIÇOS PARA CPU | C1: Ministério do Desenvolvimento Regional
C2: Companhia de Desenvolvimento dos Vales do São Francisco e do Parnaíba
C3: 1ª Superintendência Regional
B5: OBRA: | C5: PAVIMENTAÇÃO ASFÁLTICA EM CBUQ - ESTRADA PARA O POVOADO DIAMANTE - LAGOA DOURADA/MG
B6: DATA: | C6: AGOSTO / 2023 | G6: BDI Serviços: | I6: ='BDI SERV'!D31/100 -> 0.2467
B7: PRAZO DE EXECUÇÃO: 180 DIAS | G7: BDI Serviços: | I7: ='BDI FORN'!D31/100 -> 0.15
B8: ITEM | C8: DISCRIMINAÇÃO | D8: REFER. | E8: UNID. | F8: QUANT. | G8: P. UNITÁRIO | H8: P.UNIT.C/ BDI | I8: P. TOTAL
A9: A | B9: 1 | C9: SERVIÇOS PRELIMINARES | I9: =SUM(I10:I14) -> 282536.91
A10: 1 | B10: 1.1 | C10: MOBILIZAÇÃO E DESMOBILIZAÇÃO | D10: CPU.1 | E10: GL | F10: 1 | G10: =VLOOKUP(A10,CPU!$A$1:$N$4844,9) -> 6452.78 | H10: =VLOOKUP(A10,CPU!$A$1:$N$4844,10) -> 8044.68 | I10: =ROUND(F10*H10,2) -> 8044.68
A11: 2 | B11: 1.2 | C11: ADMINISTRAÇÃO LOCAL | D11: CPU.2 | E11: GL | F11: 1 | G11: =VLOOKUP(A11,CPU!$A$1:$N$4844,9) -> 190217.52 | H11: =VLOOKUP(A11,CPU!$A$1:$N$4844,10) -> 237144.18 | I11: =ROUND(F11*H11,2) -> 237144.18
A12: 3 | B12: 1.3 | C12: CANTEIRO DE OBRAS | D12: CPU.3 | E12: GL | F12: 1 | G12: =VLOOKUP(A12,CPU!$A$1:$N$4844,9) -> 19074.54 | H12: =VLOOKUP(A12,CPU!$A$1:$N$4844,10) -> 23780.23 | I12: =ROUND(F12*H12,2) -> 23780.23
A13: 4 | B13: 1.4 | C13: PLACA DE OBRA EM CHAPA DE AÇO GALVANIZADO | D13: 103689 | E13: M2 | F13: 9 | G13: =VLOOKUP(A13,CPU!$A$1:$N$4844,9) -> 350.51 | H13: =VLOOKUP(A13,CPU!$A$1:$N$4844,10) -> 436.98 | I13: =ROUND(F13*H13,2) -> 3932.82
A14: 5 | B14: 1.5 | C14: SERVIÇOS TOPOGRÁFICOS PARA PAVIMENTAÇÃO, INCLUSIVE NOTA DE SERVIÇO, ACOMPANHAMENTO E GREIDE | D14: 78472 | E14: M2 | F14: 23499.997 | G14: =VLOOKUP(A14,CPU!$A$1:$N$4844,9) -> 0.33 | H14: =VLOOKUP(A14,CPU!$A$1:$N$4844,10) -> 0.41 | I14: =ROUND(F14*H14,2) -> 9635
A15: B | B15: 2 | C15: TERRAPLANAGEM E PAVIMENTAÇÃO | I15: =SUM(I16:I22) -> 405644.5
A16: 6 | B16: 2.1 | C16: ESCAVAÇÃO HORIZONTAL EM SOLO DE 1A CATEGORIA | D16: 101116 | E16: M3 | F16: 9500 | G16: =VLOOKUP(A16,CPU!$A$1:$N$4844,9) -> 2.03 | H16: =VLOOKUP(A16,CPU!$A$1:$N$4844,10) -> 2.53 | I16: =ROUND(F16*H16,2) -> 24035
A17: 7 | B17: 2.2 | C17: CARGA, MANOBRA E DESCARGA DE SOLOS E MATERIAIS GRANULARES EM CAMINHÃO BASCULANTE | D17: 100976 | E17: M3 | F17: 9500 | G17: =VLOOKUP(A17,CPU!$A$1:$N$4844,9) -> 6.32 | H17: =VLOOKUP(A17,CPU!$A$1:$N$4844,10) -> 7.88 | I17: =ROUND(F17*H17,2) -> 74860
A18: 8 | B18: 2.3 | C18: REGULARIZAÇÃO E COMPACTAÇÃO DO SUBLEITO | D18: 100577 | E18: M2 | F18: 23500 | G18: =VLOOKUP(A18,CPU!$A$1:$N$4844,9) -> 1.13 | H18: =VLOOKUP(A18,CPU!$A$1:$N$4844,10) -> 1.41 | I18: 33135
A19: 9 | B19: 2.4 | C19: EXECUÇÃO E COMPACTAÇÃO DE BASE E OU SUB BASE PARA PAVIMENTAÇÃO DE SOLOS DE COMPORTAMENTO LATERITICO - EXCLUSIVE SOLO, ESCAVAÇÃO, CARGA E TRANSPORTE (CASCALHO FORNECIDO PELA PREFEITURA) | D19: 96388 | E19: M3 | F19: 4700 | G19: =VLOOKUP(A19,CPU!$A$1:$N$4844,9) -> 11.61 | H19: =VLOOKUP(A19,CPU!$A$1:$N$4844,10) -> 14.47 | I19: 68009
A20: 10 | B20: 2.5 | C20: IMPRIMAÇÃO COM EMULSÃO ASFÁLTICA (EAI) | D20: 96401 | E20: M2 | F20: 23500 | G20: =VLOOKUP(A20,CPU!$A$1:$N$4844,9) -> 1.12 | H20: =VLOOKUP(A20,CPU!$A$1:$N$4844,10) -> 1.4 | I20: 32900
A21: 11 | B21: 2.6 | C21: PINTURA DE LIGAÇÃO COM EMULSÃO ASFÁLTICA RR-1C | D21: 96402 | E21: M2 | F21: 19800 | G21: =VLOOKUP(A21,CPU!$A$1:$N$4844,9) -> 0.93 | H21: =VLOOKUP(A21,CPU!$A$1:$N$4844,10) -> 1.16 | I21: 22968
A22: 12 | B22: 2.7 | C22: EXECUÇÃO DE PAVIMENTO COM APLICAÇÃO DE CONCRETO ASFÁLTICO USINADO A QUENTE (CBUQ), CAMADA DE ROLAMENTO - EXCLUSIVE TRANSPORTE | D22: 95995 | E22: M3 | F22: 990 | G22: =VLOOKUP(A22,CPU!$A$1:$N$4844,9) -> 121.32 | H22: =VLOOKUP(A22,CPU!$A$1:$N$4844,10) -> 151.25 | I22: 149737.5
A23: C | B23: 3 | C23: TRANSPORTE DE MATERIAIS | I23: =SUM(I24:I25) -> 223251
A24: 13 | B24: 3.1 | C24: TRANSPORTE COM CAMINHÃO BASCULANTE, EM VIA URBANA PAVIMENTADA | D24: 95877 | E24: M3XKM | F24: 110000.0019 | G24: =VLOOKUP(A24,CPU!$A$1:$N$4844,9) -> 1.61 | H24: =VLOOKUP(A24,CPU!$A$1:$N$4844,10) -> 2.01 | I24: =ROUND(F24*H24,2) -> 221100
A25: 14 | B25: 3.2 | C25: TRANSPORTE COM CAMINHÃO CARROCERIA 9T, EM VIA URBANA PAVIMENTADA | D25: 100947 | E25: TXKM | F25: 900 | G25: =VLOOKUP(A25,CPU!$A$1:$N$4844,9) -> 1.92 | H25: =VLOOKUP(A25,CPU!$A$1:$N$4844,10) -> 2.39 | I25: =ROUND(F25*H25,2) -> 2151
A26: D | B26: 4 | C26: TRANSPORTE DE MATERIAL ASFÁLTICO (BDI DIFERENCIADO) | I26: =SUM(I27:I30) -> 137738
A27: 15 | B27: 4.1 | C27: TRANSPORTE DE MASSA ASFÁLTICA COM CAMINHÃO BASCULANTE, EM VIA URBANA PAVIMENTADA (BDI DIFERENCIADO) | D27: 95880 | E27: TXKM | F27: 80000 | G27: =VLOOKUP(A27,CPU!$A$1:$N$4844,9) -> 1.08 | H27: =VLOOKUP(A27,CPU!$A$1:$N$4844,10) -> 1.24 | I27: =ROUND(F27*H27,2) -> 99200
A28: 15.1 | B28: 4.2 | C28: TRANSPORTE COM CAMINHÃO BASCULANTE EM VIA URBANA PAVIMENTADA, ADICIONAL PARA DMT EXCEDENTE A 30 KM (BDI DIFERENCIADO) | D28: 95427 | E28: TXKM | F28: 45000 | G28: =VLOOKUP(A28,CPU!$A$1:$N$4844,9) -> 0.65 | H28: =VLOOKUP(A28,CPU!$A$1:$N$4844,10) -> 0.75 | I28: =ROUND(F28*H28,2) -> 33750
A29: 16 | B29: 4.3 | C29: TRANSPORTE COM CAMINHÃO TANQUE DE TRANSPORTE DE MATERIAL ASFÁLTICO, EM VIA URBANA PAVIMENTADA, DMT ATÉ 30KM (BDI DIFERENCIADO) | D29: 102330 | E29: TXKM | F29: 1200 | G29: =VLOOKUP(A29,CPU!$A$1:$N$4844,9) -> 1.2 | H29: =VLOOKUP(A29,CPU!$A$1:$N$4844,10) -> 1.38 | I29: 1656
A30: 16.1 | B30: 4.4 | C30: TRANSPORTE COM CAMINHÃO TANQUE DE TRANSPORTE DE MATERIAL ASFÁLTICO, EM VIA URBANA PAVIMENTADA ADICIONAL PARA DMT EXCEDENTE A 30 KM (BDI DIFERENCIADO) | D30: 102331 | E30: TXKM | F30: 5800 | G30: =VLOOKUP(A30,CPU!$A$1:$N$4844,9) -> 0.47 | H30: =VLOOKUP(A30,CPU!$A$1:$N$4844,10) -> 0.54 | I30: =ROUND(F30*H30,2) -> 3132
A31: E | B31: 5 | C31: DRENAGEM E OBRAS COMPLEMENTARES | I31: =SUM(I32:I45) -> 750034.48
A32: 17 | B32: 5.1 | C32: CAIXA COLETORA DE SARJETA - CCS 01 - COM GRELHA DE FERRO - TCC 02 - AREIA E BRITA COMERCIAIS | D32: 2003517 | E32: UNID | F32: 9 | G32: =VLOOKUP(A32,CPU!$A$1:$N$4844,9) -> 4688.673262 | H32: =VLOOKUP(A32,CPU!$A$1:$N$4844,10) -> 5845.37 | I32: =ROUND(F32*H32,2) -> 52608.33
A33: 18 | B33: 5.2 | C33: SARJETA TRIANGULAR DE CONCRETO - STC 08 - ESCAVAÇÃO MECÂNICA - AREIA E BRITA COMERCIAIS | D33: CPU.4 | E33: M | F33: 6600 | G33: =VLOOKUP(A33,CPU!$A$1:$N$4844,9) -> 66.55 | H33: =VLOOKUP(A33,CPU!$A$1:$N$4844,10) -> 82.97 | I33: =ROUND(F33*H33,2) -> 547602
A34: 18.1 | B34: 5.3 | C34: LOCAÇÃO DE REDE DE ÁGUA OU ESGOTO | D34: 99063 | E34: M | F34: 80 | G34: =VLOOKUP(A34,CPU!$A$1:$N$4844,9) -> 6.02 | H34: =VLOOKUP(A34,CPU!$A$1:$N$4844,10) -> 7.51 | I34: =ROUND(F34*H34,2) -> 600.8
A35: 18.2 | B35: 5.4 | C35: ESCAVAÇÃO MECANIZADA DE VALA COM PROFUNDIDADE ATÉ 1,5 M, EM SOLO DE 1A CATEGORIA | D35: 90105 | E35: M3 | F35: 100 | G35: =VLOOKUP(A35,CPU!$A$1:$N$4844,9) -> 8.87 | H35: =VLOOKUP(A35,CPU!$A$1:$N$4844,10) -> 11.06 | I35: =ROUND(F35*H35,2) -> 1106
A36: 18.3 | B36: 5.5 | C36: PREPARO DE FUNDO DE VALA COM LARGURA MENOR QUE 1,5 M (ACERTO DO SOLO NATURAL) | D36: 101616 | E36: M2 | F36: 90 | G36: =VLOOKUP(A36,CPU!$A$1:$N$4844,9) -> 6.07 | H36: =VLOOKUP(A36,CPU!$A$1:$N$4844,10) -> 7.57 | I36: =ROUND(F36*H36,2) -> 681.3
A37: 18.4 | B37: 5.6 | C37: ESCORAMENTO DE VALA, TIPO PONTALETEAMENTO | D37: 101570 | E37: M2 | F37: 190 | G37: =VLOOKUP(A37,CPU!$A$1:$N$4844,9) -> 26.67 | H37: =VLOOKUP(A37,CPU!$A$1:$N$4844,10) -> 33.25 | I37: =ROUND(F37*H37,2) -> 6317.5
A38: 18.5 | B38: 5.7 | C38: TUBO DE CONCRETO PARA REDES COLETORAS DE ÁGUAS PLUVIAIS, DIÂMETRO DE 400 MM, JUNTA RÍGIDA - FORNECIMENTO E ASSENTAMENTO | D38: 92210 | E38: M | F38: 78 | G38: =VLOOKUP(A38,CPU!$A$1:$N$4844,9) -> 195.13 | H38: =VLOOKUP(A38,CPU!$A$1:$N$4844,10) -> 243.27 | I38: 18975.06
A39: 18.6 | B39: 5.8 | C39: DISSIPADOR DE ENERGIA - DES 01 - AREIA E PEDRA DE MÃO COMERCIAIS | D39: 2003441 | E39: UNID | F39: 4 | G39: =VLOOKUP(A39,CPU!$A$1:$N$4844,9) -> 265.52 | H39: =VLOOKUP(A39,CPU!$A$1:$N$4844,10) -> 331.02 | I39: =ROUND(F39*H39,2) -> 1324.08
A40: 18.7 | B40: 5.9 | C40: DESCIDA D'ÁGUA DE ATERROS EM DEGRAUS - DAD 03/04 (PADRÃO DNIT) | D40: CPU.5 | E40: UNID | F40: 3 | G40: =VLOOKUP(A40,CPU!$A$1:$N$4844,9) -> 843.56 | H40: =VLOOKUP(A40,CPU!$A$1:$N$4844,10) -> 1051.67 | I40: =ROUND(F40*H40,2) -> 3155.01
A41: 18.8 | B41: 5.10 | C41: REATERRO MANUAL DE VALAS COM COMPACTAÇÃO MECANIZADA | D41: 93382 | E41: M3 | F41: 100 | G41: =VLOOKUP(A41,CPU!$A$1:$N$4844,9) -> 34.64 | H41: =VLOOKUP(A41,CPU!$A$1:$N$4844,10) -> 43.19 | I41: =ROUND(F41*H41,2) -> 4319
A42: 19 | B42: 5.11 | C42: PLACA DE REGULAMENTAÇÃO EM AÇO D = 0,60 M - PELÍCULA RETRORREFLETIVA TIPO I + SI - FORNECIMENTO E IMPLANTAÇÃO | D42: 5213440 | E42: UN. | F42: 32 | G42: =VLOOKUP(A42,CPU!$A$1:$N$4844,9) -> 264.51 | H42: =VLOOKUP(A42,CPU!$A$1:$N$4844,10) -> 329.76 | I42: =ROUND(F42*H42,2) -> 10552.32
A43: 20 | B43: 5.12 | C43: PLACA DE ADVERTÊNCIA EM AÇO, LADO DE 0,60 M - PELÍCULA RETRORREFLETIVA TIPO I + SI - FORNECIMENTO E IMPLANTAÇÃO | D43: 5213464 | E43: UN. | F43: 4 | G43: =VLOOKUP(A43,CPU!$A$1:$N$4844,9) -> 264.51 | H43: =VLOOKUP(A43,CPU!$A$1:$N$4844,10) -> 329.76 | I43: =ROUND(F43*H43,2) -> 1319.04
A44: 21 | B44: 5.13 | C44: SUPORTE PARA PLACA DE SINALIZAÇÃO EM MADEIRA DE LEI TRATADA 8 X 8 CM - FORNECIMENTO E IMPLANTAÇÃO | D44: 5216111 | E44: UN. | F44: 36 | G44: =VLOOKUP(A44,CPU!$A$1:$N$4844,9) -> 225.71 | H44: =VLOOKUP(A44,CPU!$A$1:$N$4844,10) -> 281.39 | I44: =ROUND(F44*H44,2) -> 10130.04
A45: 22 | B45: 5.14 | C45: PINTURA DE EIXO VIÁRIO SOBRE ASFALTO COM TINTA RETRORREFLETIVA A BASE DE RESINA ACRÍLICA COM MICROESFERAS DE VIDRO, APLICAÇÃO MECÂNICA COM DEMARCADORA AUTOPROPELIDA | D45: 102512 | E45: M | F45: 13200 | G45: =VLOOKUP(A45,CPU!$A$1:$N$4844,9) -> 5.55 | H45: =VLOOKUP(A45,CPU!$A$1:$N$4844,10) -> 6.92 | I45: =ROUND(F45*H45,2) -> 91344
A46: F | B46: 6 | C46: FORNECIMENTOS - MATERIAL ASFÁLTICO (BDI DIFERENCIADO) | I46: =SUM(I47:I49) -> 1897502.04
A47: 23 | B47: 6.1 | C47: AQUISIÇÃO DE EMULSÃO ASFÁLTICA PARA IMPRIMAÇÃO (EAI) - EXCLUSIVE TRANSPORTE | D47: CPU.7 | E47: T | F47: 32 | G47: =VLOOKUP(A47,CPU!$A$1:$N$4844,9) -> 2812.65 | H47: =VLOOKUP(A47,CPU!$A$1:$N$4844,10) -> 3234.55 | I47: =ROUND(F47*H47,2) -> 103505.6
A48: 24 | B48: 6.2 | C48: AQUISIÇÃO DE EMULSAO ASFALTICA CATIONICA RR-1C - EXCLUSIVE TRANSPORTE | D48: CPU.8 | E48: T | F48: 9.5 | G48: =VLOOKUP(A48,CPU!$A$1:$N$4844,9) -> 2736.39 | H48: =VLOOKUP(A48,CPU!$A$1:$N$4844,10) -> 3146.85 | I48: =ROUND(F48*H48,2) -> 29895.08
A49: 25 | B49: 6.3 | C49: AQUISIÇÃO DE CONCRETO BETUMINOSO USINADO A QUENTE (CBUQ) PARA PAVIMENTACAO ASFALTICA, PADRAO DNIT, FAIXA C, COM CAP 50/70 - EXCLUSIVE TRANSPORTE | D49: CPU.9 | E49: T | F49: 2600.002 | G49: =VLOOKUP(A49,CPU!$A$1:$N$4844,9) -> 590 | H49: =VLOOKUP(A49,CPU!$A$1:$N$4844,10) -> 678.5 | I49: 1764101.36
B50: TOTAL GERAL DA OBRA COM BDI | I50: =SUM(I9,I15,I23,I31,I46,I26) -> 3696706.93

Sheet CPU
A1: 1 | B1: CODEVASF | E1: COMPOSIÇÃO DE PREÇO UNITÁRIO | I1: =H11 -> 6452.78 | J1: =H13 -> 8044.68 | K1: BDI CALCULADO: | M1: =ORÇAMENTO!I6 -> 0.2467
B2: OBRA: | C2: =ORÇAMENTO!C5 -> PAVIMENTAÇÃO ASFÁLTICA EM CBUQ - ESTRADA PARA O POVOADO DIAMANTE - LAGOA DOURADA/MG | G2: DATA: | H2: =ORÇAMENTO!C6 -> AGOSTO / 2023 | K2: BDI DIFERENCIADO: | M2: ='BDI FORN'!D31/100 -> 0.15
B3: SERVIÇO: | C3: =VLOOKUP(A1,ORÇAMENTO!A10:I32,3) -> MOBILIZAÇÃO E DESMOBILIZAÇÃO | E3: Referência: | F3: =VLOOKUP(A1,ORÇAMENTO!$A$10:$I$32,4) -> CPU.1 | G3: UNIDADE: | H3: =VLOOKUP(A1,ORÇAMENTO!A10:I32,5) -> GL
B5: TIPO ITEM | C5: CODIGO ITEM | D5: DESCRIÇÃO ITEM | E5: UNIDADE ITEM | F5: COEFICIENTE | G5: PRECO UNITARIO | H5: CUSTO TOTAL
B6: COMPOSICAO | C6: 89876 | D6: CAMINHÃO BASCULANTE 14 M3, COM CAVALO MECÂNICO DE CAPACIDADE MÁXIMA DE TRAÇÃO COMBINADO DE 36000 KG, POTÊNCIA 286 CV, INCLUSIVE SEMIREBOQUE COM CAÇAMBA METÁLICA | E6: CHP DIURNO. | F6: 8 | G6: 286.2 | H6: =ROUNDDOWN(F6*G6,2) -> 2289.6
B7: COMPOSICAO | C7: 89877 | D7: CAMINHÃO BASCULANTE 14 M3, COM CAVALO MECÂNICO DE CAPACIDADE MÁXIMA DE TRAÇÃO COMBINADO DE 36000 KG, POTÊNCIA 286 CV, INCLUSIVE SEMIREBOQUE COM CAÇAMBA METÁLICA | E7: CHI DIURNO. | F7: 16 | G7: 82.81 | H7: =ROUNDDOWN(F7*G7,2) -> 1324.96
B8: COMPOSICAO | C8: 5914640 | D8: TRANSPORTE COM CAVALO MECÂNICO COM SEMIRREBOQUE COM CAPACIDADE DE 30 T - RODOVIA PAVIMENTADA | E8: T.KM | F8: 3870 | G8: 0.57 | H8: 2205.9
B9: COMPOSIÇÃO | C9: 88316 | D9: SERVENTE COM ENCARGOS COMPLEMENTARES | E9: H | F9: 32 | G9: 19.76 | H9: 632.32
B10: PRODUÇÃO DA EQUIPE | E10: 1 | F10: CUSTO | H10: =SUM(H6:H9) -> 6452.78
B11: TOTAL | H11: =H10/E10 -> 6452.78 | I11: OK
B12: BDI % | H12: =1+$M$1 -> 1.2467
B13: TOTAL DO SERVIÇO - R$ | H13: =ROUND(H11*H12,2) -> 8044.68
A15: =A1+1 -> 2 | B15: CODEVASF | E15: COMPOSIÇÃO DE PREÇO UNITÁRIO | I15: =H30 -> 190217.52 | J15: =H32 -> 237144.18
B16: OBRA: | C16: =$C$2 -> PAVIMENTAÇÃO ASFÁLTICA EM CBUQ - ESTRADA PARA O POVOADO DIAMANTE - LAGOA DOURADA/MG | G16: DATA: | H16: =$H$2 -> AGOSTO / 2023
B17: SERVIÇO: | C17: =VLOOKUP(A15,ORÇAMENTO!$A$10:$I$32,3) -> ADMINISTRAÇÃO LOCAL | E17: SINAPI | F17: =VLOOKUP(A15,ORÇAMENTO!$A$10:$I$32,4) -> CPU.2 | G17: UNIDADE: | H17: =VLOOKUP(A15,ORÇAMENTO!$A$10:$I$32,5) -> GL
B19: TIPO ITEM | C19: CODIGO ITEM | D19: DESCRIÇÃO ITEM | E19: UNIDADE ITEM | F19: COEFICIENTE | G19: PRECO UNITARIO | H19: CUSTO TOTAL
B20: INSUMO | C20: 14250 | D20: ENERGIA ELÉTRICA | E20: kwh | F20: 80 | G20: 0.95 | H20: =ROUNDDOWN(F20*G20,2) -> 76
B21: INSUMO | C21: 44480 | D21: TARIFA "A" - ÁGUA/ESGOTO | E21: m³ | F21: 6 | G21: 17.97 | H21: 107.82
B22: COTAÇÃO | C22: MERC. | D22: TELEFONE (PLANO CONTROLE) | E22: UNID | F22: 3 | G22: 59.9 | H22: 179.7
B23: INSUMO | C23: ED-50155 SEINFRA | D23: BANHEIRO QUÍMICO 110 X 120 X 230 CM COM MANUTENÇÃO (CONSIDERANDO OBRAS SIMULTÂNEAS) | E23: MÊS | F23: 2 | G23: 515 | H23: 1030
B24: COMPOSICAO | C24: 90777 | D24: Engenheiro Civil Júnior com encargos complementares | E24: H | F24: 55 | G24: 114.12 | H24: 6276.6
B25: COMPOSICAO | C25: 90776 | D25: Encarregado Geral com encargos complementares | E25: H | F25: 220 | G25: 57.73 | H25: 12700.6
B26: COMPOSICAO | C26: 88321 | D26: Tecnico de Laboratório com encargos complementares | E26: H | F26: 110 | G26: 45.45 | H26: 4999.5
B27: COMPOSICAO | C27: 100309 | D27: Tecnico em Segurança do Trabalho com encargos complementares | E27: H | F27: 110 | G27: 45.71 | H27: =ROUNDDOWN(F27*G27,2) -> 5028.1
B28: COMPOSICAO | C28: 90772 | D28: Auxiliar de escritório com encargos complementares | E28: H | F28: 55 | G28: 23.72 | H28: 1304.6
B29: PRODUÇÃO DA EQUIPE | E29: =1/6 -> 0.1666666667 | F29: CUSTO | H29: =SUM(H20:H28) -> 31702.92
B30: TOTAL | H30: =ROUND(H29/E29,2) -> 190217.52 | I30: OK
B31: BDI % | H31: =1+$M$1 -> 1.2467
B32: TOTAL DO SERVIÇO - R$ | H32: =ROUND(H30*H31,2) -> 237144.18
A34: =A15+1 -> 3 | B34: CODEVASF | E34: COMPOSIÇÃO DE PREÇO UNITÁRIO | I34: =H45 -> 19074.54 | J34: =H47 -> 23780.23
B35: OBRA: | C35: =$C$2 -> PAVIMENTAÇÃO ASFÁLTICA EM CBUQ - ESTRADA PARA O POVOADO DIAMANTE - LAGOA DOURADA/MG | G35: DATA: | H35: =$H$2 -> AGOSTO / 2023
B36: SERVIÇO: | C36: =VLOOKUP(A34,ORÇAMENTO!$A$10:$I$32,3) -> CANTEIRO DE OBRAS | E36: SINAPI | F36: =VLOOKUP(A34,ORÇAMENTO!$A$10:$I$32,4) -> CPU.3 | G36: UNIDADE: | H36: =VLOOKUP(A34,ORÇAMENTO!$A$10:$I$32,5) -> GL
B38: TIPO ITEM | C38: CODIGO ITEM | D38: DESCRIÇÃO ITEM | E38: UNIDADE ITEM | F38: COEFICIENTE | G38: PRECO UNITARIO | H38: CUSTO TOTAL
B39: INSUMO | C39: 10775 | D39: ALUGUEL DE IMÓVEL OU CONTEINER QUE ATENDA AOS REQUISITOS MÍNIMOS PARA INSTALAÇÃO DO CANTEIRO DE OBRAS | E39: MÊS | F39: 6 | G39: 995 | H39: =ROUNDDOWN(F39*G39,2) -> 5970
B40: INSUMO | C40: 10779 | D40: LOCACAO DE CONTAINER 2,30 X 4,30 M, ALT. 2,50 M, P/ SANITARIO, C/ 5 BACIAS, 1 LAVATORIO E 4 MICTORIOS | E40: MÊS | F40: 6 | G40: 1243.75 | H40: =ROUNDDOWN(F40*G40,2) -> 7462.5
B41: INSUMO | C41: 10776 | D41: LOCACAO DE CONTAINER 2,30 X 6,00 M, ALT. 2,50 M, PARA ESCRITORIO, SEM DIVISORIAS INTERNAS E SEM SANITARIO | E41: MÊS | F41: 6 | G41: 777.34 | H41: 4664.04
B42: INSUMO | C42: 37525 | D42: TELA PLASTICA TECIDA LISTRADA BRANCA E LARANJA, TIPO GUARDA CORPO, EM POLIETILENO MONOFILADO, ROLO 1,20 X 50 M (L X C) | E42: M | F42: 200 | G42: 3.69 | H42: 738
B43: COMPOSICAO | C43: - | D43: PLACA DE SINALIZAÇÃO - "PERIGO - OBRAS A FRENTE" - FORNECIMENTO E MOVIMENTAÇÃO | E43: UNID. | F43: 12 | G43: 20 | H43: 240
B44: PRODUÇÃO DA EQUIPE | E44: 1 | F44: CUSTO | H44: =SUM(H39:H43) -> 19074.54
B45: TOTAL | H45: =H44/E44 -> 19074.54 | I45: OK
B46: BDI % | H46: =1+$M$1 -> 1.2467
B47: TOTAL DO SERVIÇO - R$ | H47: =ROUND(H45*H46,2) -> 23780.23
A49: =A34+1 -> 4 | B49: CODEVASF | E49: COMPOSIÇÃO DE PREÇO UNITÁRIO | I49: =H63 -> 350.51 | J49: =H65 -> 436.98
B50: OBRA: | C50: =$C$2 -> PAVIMENTAÇÃO ASFÁLTICA EM CBUQ - ESTRADA PARA O POVOADO DIAMANTE - LAGOA DOURADA/MG | G50: DATA: | H50: =$H$2 -> AGOSTO / 2023
B51: SERVIÇO: | C51: =VLOOKUP(A49,ORÇAMENTO!$A$10:$I$32,3) -> PLACA DE OBRA EM CHAPA DE AÇO GALVANIZADO | E51: SINAPI | F51: =VLOOKUP(A49,ORÇAMENTO!$A$10:$I$32,4) -> 103689 | G51: UNIDADE: | H51: =VLOOKUP(A49,ORÇAMENTO!$A$10:$I$32,5) -> M2
B53: TIPO ITEM | C53: CODIGO ITEM | D53: DESCRIÇÃO ITEM | E53: UNIDADE ITEM | F53: COEFICIENTE | G53: PRECO UNITARIO | H53: CUSTO TOTAL
B54: INSUMO | C54: 4509 | D54: SARRAFO *2,5 X 10* CM EM PINUS, MISTA OU EQUIVALENTE DA REGIAO - BRUTA | E54: M | F54: 3,2083000 | G54: 4,41 | H54: =ROUNDDOWN(F54*G54,2) -> 14.14
B55: INSUMO | C55: 4813 | D55: PLACA DE OBRA (PARA CONSTRUCAO CIVIL) EM CHAPA GALVANIZADA *N. 22*, ADESIVADA, DE *2,4 X 1,2* M (SEM POSTES PARA FIXACAO) | E55: M2 | F55: 1,0000000 | G55: 250,00 | H55: 250
B56: INSUMO | C56: 5065 | D56: PREGO DE ACO POLIDO COM CABECA 10 X 10 (7/8 X 17) | E56: KG | F56: 0,0113000 | G56: 36,57 | H56: =ROUNDDOWN(F56*G56,2) -> 0.41
B57: INSUMO | C57: 5069 | D57: PREGO DE ACO POLIDO COM CABECA 17 X 27 (2 1/2 X 11) | E57: KG | F57: 0,0132000 | G57: 19,59 | H57: 0.25
B58: COMPOSICAO | C58: 88262 | D58: CARPINTEIRO DE FORMAS COM ENCARGOS COMPLEMENTARES | E58: H | F58: 0,3729000 | G58: 27,05 | H58: 10.08
B59: COMPOSICAO | C59: 88316 | D59: SERVENTE COM ENCARGOS COMPLEMENTARES | E59: H | F59: 1,1186000 | G59: 19,76 | H59: 22.1
B60: COMPOSICAO | C60: 102234 | D60: PINTURA IMUNIZANTE PARA MADEIRA, 2 DEMÃOS | E60: M2 | F60: 0,5000000 | G60: 21,58 | H60: 10.79
B61: COMPOSICAO | C61: 4115 | D61: MADEIRA ROLICA TRATADA, D = 12 A 15 CM, EM EUCALIPTO OU EQUIVALENTE DA REGIAO | E61: M | F61: 2 | G61: 21.37 | H61: 42.74
B62: PRODUÇÃO DA EQUIPE | E62: 1 | F62: CUSTO | H62: =SUM(H54:H61) -> 350.51
B63: TOTAL | H63: =H62/E62 -> 350.51 | I63: OK
B64: BDI % | H64: =1+$M$1 -> 1.2467
B65: TOTAL DO SERVIÇO - R$ | H65: =ROUND(H63*H64,2) -> 436.98
A67: =A49+1 -> 5 | B67: CODEVASF | E67: COMPOSIÇÃO DE PREÇO UNITÁRIO | I67: =H79 -> 0.33 | J67: =H81 -> 0.41
B68: OBRA: | C68: =$C$2 -> PAVIMENTAÇÃO ASFÁLTICA EM CBUQ - ESTRADA PARA O POVOADO DIAMANTE - LAGOA DOURADA/MG | G68: DATA: | H68: =$H$2 -> AGOSTO / 2023
B69: SERVIÇO: | C69: =VLOOKUP(A67,ORÇAMENTO!$A$10:$I$32,3) -> SERVIÇOS TOPOGRÁFICOS PARA PAVIMENTAÇÃO, INCLUSIVE NOTA DE SERVIÇO, ACOMPANHAMENTO E GREIDE | E69: SINAPI | F69: =VLOOKUP(A67,ORÇAMENTO!$A$10:$I$32,4) -> 78472 | G69: UNIDADE: | H69: =VLOOKUP(A67,ORÇAMENTO!$A$10:$I$32,5) -> M2
B71: TIPO ITEM | C71: CODIGO ITEM | D71: DESCRIÇÃO ITEM | E71: UNIDADE ITEM | F71: COEFICIENTE | G71: PRECO UNITARIO | H71: CUSTO TOTAL
B72: COMPOSICAO | C72: 88253 | D72: AUXILIAR DE TOPÓGRAFO COM ENCARGOS COMPLEMENTARES | E72: H | F72: 0.0025 | G72: 21.57 | H72: =ROUNDDOWN(F72*G72,2) -> 0.05
B73: COMPOSICAO | C73: 88288 | D73: NIVELADOR COM ENCARGOS COMPLEMENTARES | E73: H | F73: 0.0025 | G73: 26.99 | H73: =ROUNDDOWN(F73*G73,2) -> 0.06
B74: COMPOSICAO | C74: 88316 | D74: SERVENTE COM ENCARGOS COMPLEMENTARES | E74: H | F74: 0.0075 | G74: 19.76 | H74: 0.14
B75: COMPOSICAO | C75: 88597 | D75: DESENHISTA DETALHISTA COM ENCARGOS COMPLEMENTARES | E75: H | F75: 0.002 | G75: 29.72 | H75: 0.05
B76: COMPOSICAO | C76: 92145 | D76: CAMINHONETE CABINE SIMPLES COM MOTOR 1.6 FLEX, CÂMBIO MANUAL, POTÊNCIA 101/104 CV, 2 PORTAS | E76: CHP | F76: 0.0005 | G76: 73.33 | H76: 0.03
H77: =ROUNDDOWN(F77*G77,2) -> 0
B78: PRODUÇÃO DA EQUIPE | E78: 1 | F78: CUSTO | H78: =SUM(H72:H77) -> 0.33
B79: TOTAL | H79: =H78/E78 -> 0.33 | I79: OK
B80: BDI % | H80: =1+$M$1 -> 1.2467
B81: TOTAL DO SERVIÇO - R$ | H81: =ROUND(H79*H80,2) -> 0.41
A83: =A67+1 -> 6 | B83: CODEVASF | E83: COMPOSIÇÃO DE PREÇO UNITÁRIO | I83: =H92 -> 2.03 | J83: =H94 -> 2.53
B84: OBRA: | C84: =$C$2 -> PAVIMENTAÇÃO ASFÁLTICA EM CBUQ - ESTRADA PARA O POVOADO DIAMANTE - LAGOA DOURADA/MG | G84: DATA: | H84: =$H$2 -> AGOSTO / 2023
B85: SERVIÇO: | C85: =VLOOKUP(A83,ORÇAMENTO!$A$10:$I$32,3) -> ESCAVAÇÃO HORIZONTAL EM SOLO DE 1A CATEGORIA | E85: SINAPI | F85: =VLOOKUP(A83,ORÇAMENTO!$A$10:$I$32,4) -> 101116 | G85: UNIDADE: | H85: =VLOOKUP(A83,ORÇAMENTO!$A$10:$I$32,5) -> M3
B87: TIPO ITEM | C87: CODIGO ITEM | D87: DESCRIÇÃO ITEM | E87: UNIDADE ITEM | F87: COEFICIENTE | G87: PRECO UNITARIO | H87: CUSTO TOTAL
B88: COMPOSICAO | C88: 5847 | D88: TRATOR DE ESTEIRAS, POTÊNCIA 170 HP, PESO OPERACIONAL 19 T, CAÇAMBA 5,2 M3 | E88: CHP | F88: 0,0048000 | G88: 231,82 | H88: =ROUNDDOWN(F88*G88,2) -> 1.11
B89: COMPOSICAO | C89: 5849 | D89: TRATOR DE ESTEIRAS, POTÊNCIA 170 HP, PESO OPERACIONAL 19 T, CAÇAMBA 5,2 M3 | E89: CHI | F89: 0,0082000 | G89: 82,14 | H89: 0.67
B90: COMPOSICAO | C90: 88316 | D90: SERVENTE COM ENCARGOS COMPLEMENTARES | E90: H | F90: 0,0131000 | G90: 19,76 | H90: 0.25
B91: PRODUÇÃO DA EQUIPE | E91: 1 | F91: CUSTO | H91: =SUM(H88:H90) -> 2.03
B92: TOTAL | H92: =H91/E91 -> 2.03 | I92: OK
B93: BDI % | H93: =1+$M$1 -> 1.2467
B94: TOTAL DO SERVIÇO - R$ | H94: =ROUND(H92*H93,2) -> 2.53
A96: 7 | B96: CODEVASF | E96: COMPOSIÇÃO DE PREÇO UNITÁRIO | I96: =H106 -> 6.32 | J96: =H108 -> 7.88
B97: OBRA: | C97: =$C$2 -> PAVIMENTAÇÃO ASFÁLTICA EM CBUQ - ESTRADA PARA O POVOADO DIAMANTE - LAGOA DOURADA/MG | G97: DATA: | H97: =$H$2 -> AGOSTO / 2023
B98: SERVIÇO: | C98: =VLOOKUP(A96,ORÇAMENTO!$A$10:$I$32,3) -> CARGA, MANOBRA E DESCARGA DE SOLOS E MATERIAIS GRANULARES EM CAMINHÃO BASCULANTE | E98: SINAPI | F98: =VLOOKUP(A96,ORÇAMENTO!$A$10:$I$32,4) -> 100976 | G98: UNIDADE: | H98: =VLOOKUP(A96,ORÇAMENTO!$A$10:$I$32,5) -> M3
B100: TIPO ITEM | C100: CODIGO ITEM | D100: DESCRIÇÃO ITEM | E100: UNIDADE ITEM | F100: COEFICIENTE | G100: PRECO UNITARIO | H100: CUSTO TOTAL
B101: COMPOSICAO | C101: 5940 | D101: PÁ CARREGADEIRA SOBRE RODAS, POTÊNCIA LÍQUIDA 128 HP, CAPACIDADE DA CAÇAMBA 1,7 A 2,8 M3, PESO OPERACIONAL 11632 KG | E101: CHP | F101: 0,0083000 | G101: 205,93 | H101: =ROUNDDOWN(F101*G101,2) -> 1.7
B102: COMPOSICAO | C102: 5942 | D102: PÁ CARREGADEIRA SOBRE RODAS, POTÊNCIA LÍQUIDA 128 HP, CAPACIDADE DA CAÇAMBA 1,7 A 2,8 M3, PESO OPERACIONAL 11632 KG | E102: CHI | F102: 0,0074000 | G102: 90,02 | H102: 0.66
B103: COMPOSICAO | C103: 89883 | D103: CAMINHÃO BASCULANTE 18 M3, COM CAVALO MECÂNICO DE CAPACIDADE MÁXIMA DE TRAÇÃO COMBINADO DE 45000 KG, POTÊNCIA 330 CV, INCLUSIVE SEMIREBOQUE COM CAÇAMBA METÁLICA | E103: CHP | F103: 0.0100053 | G103: 314,64 | H103: 3.14
B104: COMPOSICAO | C104: 89884 | D104: CAMINHÃO BASCULANTE 18 M3, COM CAVALO MECÂNICO DE CAPACIDADE MÁXIMA DE TRAÇÃO COMBINADO DE 45000 KG, POTÊNCIA 330 CV, INCLUSIVE SEMIREBOQUE COM CAÇAMBA METÁLICA | E104: CHI | F104: 0,0095000 | G104: 86,36 | H104: 0.82
B105: PRODUÇÃO DA EQUIPE | E105: 1 | F105: CUSTO | H105: =SUM(H101:H104) -> 6.32
B106: TOTAL | H106: =H105/E105 -> 6.32 | I106: OK
B107: BDI % | H107: =1+$M$1 -> 1.2467
B108: TOTAL DO SERVIÇO - R$ | H108: =ROUND(H106*H107,2) -> 7.88
A110: 8 | B110: CODEVASF | E110: COMPOSIÇÃO DE PREÇO UNITÁRIO | I110: =H124 -> 1.13 | J110: =H126 -> 1.41
B111: OBRA: | C111: =$C$2 -> PAVIMENTAÇÃO ASFÁLTICA EM CBUQ - ESTRADA PARA O POVOADO DIAMANTE - LAGOA DOURADA/MG | G111: DATA: | H111: =$H$2 -> AGOSTO / 2023
B112: SERVIÇO: | C112: =VLOOKUP(A110,ORÇAMENTO!$A$10:$I$32,3) -> REGULARIZAÇÃO E COMPACTAÇÃO DO SUBLEITO | E112: SICRO | F112: =VLOOKUP(A110,ORÇAMENTO!$A$10:$I$32,4) -> 100577 | G112: UNIDADE: | H112: M2
B114: TIPO ITEM | C114: CODIGO ITEM | D114: DESCRIÇÃO ITEM | E114: UNIDADE ITEM | F114: COEFICIENTE | G114: PRECO UNITARIO | H114: CUSTO TOTAL
B115: COMPOSICAO | C115: 5901 | D115: CAMINHÃO PIPA 10.000 L TRUCADO, PESO BRUTO TOTAL 23.000 KG, CARGA ÚTIL MÁXIMA 15.935 KG, DISTÂNCIA ENTRE EIXOS 4,8 M, POTÊNCIA 230 CV, INCLUSIVE TANQUE DE AÇO PARA TRANSPORTE DE ÁGUA - CHP DIURNO. AF_06/2014 | E115: CHP | F115: 0,0010000 | G115: 264,71 | H115: =ROUNDDOWN(F115*G115,2) -> 0.26
B116: COMPOSICAO | C116: 5903 | D116: CAMINHÃO PIPA 10.000 L TRUCADO, PESO BRUTO TOTAL 23.000 KG, CARGA ÚTIL MÁXIMA 15.935 KG, DISTÂNCIA ENTRE EIXOS 4,8 M, POTÊNCIA 230 CV, INCLUSIVE TANQUE DE AÇO PARA TRANSPORTE DE ÁGUA - CHI DIURNO. AF_06/2014 | E116: CHI | F116: 0,0020000 | G116: 67,26 | H116: =ROUNDDOWN(F116*G116,2) -> 0.13
B117: COMPOSICAO | C117: 5932 | D117: MOTONIVELADORA POTÊNCIA BÁSICA LÍQUIDA (PRIMEIRA MARCHA) 125 HP, PESO BRUTO 13032 KG, LARGURA DA LÂMINA DE 3,7 M - CHP DIURNO. AF_06/2014 | E117: CHP | F117: 0,0001000 | G117: 244,89 | H117: 0.02
B118: COMPOSICAO | C118: 5934 | D118: MOTONIVELADORA POTÊNCIA BÁSICA LÍQUIDA (PRIMEIRA MARCHA) 125 HP, PESO BRUTO 13032 KG, LARGURA DA LÂMINA DE 3,7 M - CHI DIURNO. AF_06/2014 | E118: CHI | F118: 0,0030000 | G118: 101,62 | H118: 0.3
B119: COMPOSICAO | C119: 88316 | D119: SERVENTE COM ENCARGOS COMPLEMENTARES | E119: H | F119: 0,0030000 | G119: 19,76 | H119: 0.05
B120: COMPOSICAO | C120: 96463 | D120: ROLO COMPACTADOR DE PNEUS, ESTATICO, PRESSAO VARIAVEL, POTENCIA 110 HP, PESO SEM/COM LASTRO 10,8/27 T, LARGURA DE ROLAGEM 2,30 M - CHP DIURNO. AF_06/2017 | E120: CHP | F120: 0,0010000 | G120: 203,13 | H120: 0.2
B121: COMPOSICAO | C121: 96464 | D121: ROLO COMPACTADOR DE PNEUS, ESTATICO, PRESSAO VARIAVEL, POTENCIA 110 HP, PESO SEM/COM LASTRO 10,8/27 T, LARGURA DE ROLAGEM 2,30 M - CHI DIURNO. AF_06/2017 | E121: CHI | F121: 0,0020000 | G121: 89,07 | H121: 0.17
B123: PRODUÇÃO DA EQUIPE | E123: 1 | F123: CUSTO | H123: =SUM(H115:H122) -> 1.13
B124: TOTAL | H124: =H123/E123 -> 1.13 | I124: OK
B125: BDI % | H125: =1+$M$1 -> 1.2467
B126: TOTAL DO SERVIÇO - R$ | H126: =ROUND(H124*H125,2) -> 1.41
A128: 9 | B128: CODEVASF | E128: COMPOSIÇÃO DE PREÇO UNITÁRIO | I128: =H143 -> 11.61 | J128: =H145 -> 14.47
B129: OBRA: | C129: =$C$2 -> PAVIMENTAÇÃO ASFÁLTICA EM CBUQ - ESTRADA PARA O POVOADO DIAMANTE - LAGOA DOURADA/MG | G129: DATA: | H129: =$H$2 -> AGOSTO / 2023
B130: SERVIÇO: | C130: =VLOOKUP(A128,ORÇAMENTO!$A$10:$I$32,3) -> EXECUÇÃO E COMPACTAÇÃO DE BASE E OU SUB BASE PARA PAVIMENTAÇÃO DE SOLOS DE COMPORTAMENTO LATERITICO - EXCLUSIVE SOLO, ESCAVAÇÃO, CARGA E TRANSPORTE (CASCALHO FORNECIDO PELA PREFEITURA) | E130: SINAPI | F130: =VLOOKUP(A128,ORÇAMENTO!$A$10:$I$32,4) -> 96388 | G130: UNIDADE: | H130: =VLOOKUP(A128,ORÇAMENTO!$A$10:$I$32,5) -> M3
B132: TIPO ITEM | C132: CODIGO ITEM | D132: DESCRIÇÃO ITEM | E132: UNIDADE ITEM | F132: COEFICIENTE | G132: PRECO UNITARIO | H132: CUSTO TOTAL
B133: COMPOSICAO | C133: 5684 | D133: ROLO COMPACTADOR VIBRATÓRIO DE UM CILINDRO AÇO LISO, POTÊNCIA 80 HP, PESO OPERACIONAL MÁXIMO 8,1 T, IMPACTO DINÂMICO 16,15 / 9,5 T, LARGURA DE TRABALHO 1,68 M - CHP DIURNO. AF_06/2014 | E133: CHP | F133: 0,0030000 | G133: 148,46 | H133: =ROUNDDOWN(F133*G133,2) -> 0.44
B134: COMPOSICAO | C134: 5685 | D134: ROLO COMPACTADOR VIBRATÓRIO DE UM CILINDRO AÇO LISO, POTÊNCIA 80 HP, PESO OPERACIONAL MÁXIMO 8,1 T, IMPACTO DINÂMICO 16,15 / 9,5 T, LARGURA DE TRABALHO 1,68 M - CHI DIURNO. AF_06/2014 | E134: CHI | F134: 0,0230000 | G134: 65,46 | H134: 1.5
B135: COMPOSICAO | C135: 5901 | D135: CAMINHÃO PIPA 10.000 L TRUCADO, PESO BRUTO TOTAL 23.000 KG, CARGA ÚTIL MÁXIMA 15.935 KG, DISTÂNCIA ENTRE EIXOS 4,8 M, POTÊNCIA 230 CV, INCLUSIVE TANQUE DE AÇO PARA TRANSPORTE DE ÁGUA - CHP DIURNO. AF_06/2014 | E135: CHP | F135: 0,0040000 | G135: 264,71 | H135: 1.05
B136: COMPOSICAO | C136: 5903 | D136: CAMINHÃO PIPA 10.000 L TRUCADO, PESO BRUTO TOTAL 23.000 KG, CARGA ÚTIL MÁXIMA 15.935 KG, DISTÂNCIA ENTRE EIXOS 4,8 M, POTÊNCIA 230 CV, INCLUSIVE TANQUE DE AÇO PARA TRANSPORTE DE ÁGUA - CHI DIURNO. AF_06/2014 | E136: CHI | F136: 0,0220000 | G136: 67,26 | H136: 1.47
B137: COMPOSICAO | C137: 5932 | D137: MOTONIVELADORA POTÊNCIA BÁSICA LÍQUIDA (PRIMEIRA MARCHA) 125 HP, PESO BRUTO 13032 KG, LARGURA DA LÂMINA DE 3,7 M - CHP DIURNO. AF_06/2014 | E137: CHP | F137: 0,0080000 | G137: 244,89 | H137: 1.95
B138: COMPOSICAO | C138: 5934 | D138: MOTONIVELADORA POTÊNCIA BÁSICA LÍQUIDA (PRIMEIRA MARCHA) 125 HP, PESO BRUTO 13032 KG, LARGURA DA LÂMINA DE 3,7 M - CHI DIURNO. AF_06/2014 | E138: CHI | F138: 0,0190000 | G138: 101,62 | H138: 1.93
B139: COMPOSICAO | C139: 88316 | D139: SERVENTE COM ENCARGOS COMPLEMENTARES | E139: H | F139: 0,0260000 | G139: 19,76 | H139: 0.51
B140: COMPOSICAO | C140: 96463 | D140: ROLO COMPACTADOR DE PNEUS, ESTATICO, PRESSAO VARIAVEL, POTENCIA 110 HP, PESO SEM/COM LASTRO 10,8/27 T, LARGURA DE ROLAGEM 2,30 M - CHP DIURNO. AF_06/2017 | E140: CHP | F140: 0,0040000 | G140: 203,13 | H140: 0.81
B141: COMPOSICAO | C141: 96464 | D141: ROLO COMPACTADOR DE PNEUS, ESTATICO, PRESSAO VARIAVEL, POTENCIA 110 HP, PESO SEM/COM LASTRO 10,8/27 T, LARGURA DE ROLAGEM 2,30 M - CHI DIURNO. AF_06/2017 | E141: CHI | F141: 0,0220000 | G141: 89,07 | H141: 1.95
B142: PRODUÇÃO DA EQUIPE | E142: 1 | F142: CUSTO | H142: =SUM(H133:H141) -> 11.61
B143: TOTAL | H143: =H142/E142 -> 11.61 | I143: OK
B144: BDI % | H144: =1+$M$1 -> 1.2467
B145: TOTAL DO SERVIÇO - R$ | H145: =ROUND(H143*H144,2) -> 14.47
A147: 10 | B147: CODEVASF | E147: COMPOSIÇÃO DE PREÇO UNITÁRIO | I147: =H162 -> 1.12 | J147: =H164 -> 1.4
B148: OBRA: | C148: =$C$2 -> PAVIMENTAÇÃO ASFÁLTICA EM CBUQ - ESTRADA PARA O POVOADO DIAMANTE - LAGOA DOURADA/MG | G148: DATA: | H148: =$H$2 -> AGOSTO / 2023
B149: SERVIÇO: | C149: =VLOOKUP(A147,ORÇAMENTO!$A$10:$I$32,3) -> IMPRIMAÇÃO COM EMULSÃO ASFÁLTICA (EAI) | E149: SINAPI | F149: =VLOOKUP(A147,ORÇAMENTO!$A$10:$I$32,4) -> 96401 | G149: UNIDADE: | H149: =VLOOKUP(A147,ORÇAMENTO!$A$10:$I$32,5) -> M2
B151: TIPO ITEM | C151: CODIGO ITEM | D151: DESCRIÇÃO ITEM | E151: UNIDADE ITEM | F151: COEFICIENTE | G151: PRECO UNITARIO | H151: CUSTO TOTAL
B152: COMPOSICAO | C152: 5839 | D152: VASSOURA MECÂNICA REBOCÁVEL COM ESCOVA CILÍNDRICA, LARGURA ÚTIL DE VARRIMENTO DE 2,44 M | E152: CHP | F152: 0,0020000 | G152: 9.77 | H152: =ROUNDDOWN(F152*G152,2) -> 0.01
B153: COMPOSICAO | C153: 5841 | D153: VASSOURA MECÂNICA REBOCÁVEL COM ESCOVA CILÍNDRICA, LARGURA ÚTIL DE VARRIMENTO DE 2,44 M | E153: CHI | F153: 0,0040000 | G153: 4.65 | H153: 0.01
B154: INSUMO | C154: ANP | D154: EMULSÃO ASFÁLTICA PARA IMPRIMAÇÃO - EAI (FORNECIMENTO COM BDI DIFERENCIADO) | E154: T | F154: =1.3/1000 -> 0.0013 | H154: 0
B155: COMPOSICAO | C155: 83362 | D155: ESPARGIDOR DE ASFALTO PRESSURIZADO, TANQUE 6 M3 COM ISOLAÇÃO TÉRMICA, AQUECIDO COM 2 MAÇARICOS, COM BARRA ESPARGIDORA 3,60 M, MONTADO SOBRE CAMINHÃO TOCO, PBT 14.300 KG, POTÊNCIA 185 CV | E155: CHP | F155: 0,0010000 | G155: 232.92 | H155: 0.23
B156: COMPOSICAO | C156: 88316 | D156: SERVENTE COM ENCARGOS COMPLEMENTARES | E156: H | F156: 0,0060000 | G156: 19.76 | H156: 0.11
B157: COMPOSICAO | C157: 89035 | D157: TRATOR DE PNEUS, POTÊNCIA 85 CV, TRAÇÃO 4X4, PESO COM LASTRO DE 4.675 KG | E157: CHP | F157: 0,0020000 | G157: 119.96 | H157: 0.23
B158: COMPOSICAO | C158: 89036 | D158: TRATOR DE PNEUS, POTÊNCIA 85 CV, TRAÇÃO 4X4, PESO COM LASTRO DE 4.675 KG | E158: CHI | F158: 0,0040000 | G158: 52.19 | H158: 0.2
B159: COMPOSICAO | C159: 91486 | D159: ESPARGIDOR DE ASFALTO PRESSURIZADO, TANQUE 6 M3 COM ISOLAÇÃO TÉRMICA, AQUECIDO COM 2 MAÇARICOS, COM BARRA ESPARGIDORA 3,60 M, MONTADO SOBRE CAMINHÃO TOCO, PBT 14.300 KG, POTÊNCIA 185 CV | E159: CHI | F159: 0,0050000 | G159: 66.18 | H159: 0.33
H160: 0
B161: PRODUÇÃO DA EQUIPE | E161: 1 | F161: CUSTO | H161: =SUM(H152:H160) -> 1.12
B162: TOTAL | H162: =H161/E161 -> 1.12 | I162: OK
B163: BDI % | H163: =1+$M$1 -> 1.2467
B164: TOTAL DO SERVIÇO - R$ | H164: =ROUND(H162*H163,2) -> 1.4
A166: 11 | B166: CODEVASF | E166: COMPOSIÇÃO DE PREÇO UNITÁRIO | I166: =H181 -> 0.93 | J166: =H183 -> 1.16
B167: OBRA: | C167: =$C$2 -> PAVIMENTAÇÃO ASFÁLTICA EM CBUQ - ESTRADA PARA O POVOADO DIAMANTE - LAGOA DOURADA/MG | G167: DATA: | H167: =$H$2 -> AGOSTO / 2023
B168: SERVIÇO: | C168: =VLOOKUP(A166,ORÇAMENTO!$A$10:$I$32,3) -> PINTURA DE LIGAÇÃO COM EMULSÃO ASFÁLTICA RR-1C | E168: SINAPI | F168: =VLOOKUP(A166,ORÇAMENTO!$A$10:$I$32,4) -> 96402 | G168: UNIDADE: | H168: M2
B170: TIPO ITEM | C170: CODIGO ITEM | D170: DESCRIÇÃO ITEM | E170: UNIDADE ITEM | F170: COEFICIENTE | G170: PRECO UNITARIO | H170: CUSTO TOTAL
B171: COMPOSICAO | C171: 5839 | D171: VASSOURA MECÂNICA REBOCÁVEL COM ESCOVA CILÍNDRICA, LARGURA ÚTIL DE VARRIMENTO DE 2,44 M | E171: CHP | F171: 0,0020000 | G171: 9.77 | H171: =ROUNDDOWN(F171*G171,2) -> 0.01
B172: COMPOSICAO | C172: 5841 | D172: VASSOURA MECÂNICA REBOCÁVEL COM ESCOVA CILÍNDRICA, LARGURA ÚTIL DE VARRIMENTO DE 2,44 M | E172: CHI | F172: 0,0040000 | G172: 4.65 | H172: 0.01
B173: INSUMO | C173: 41903 | D173: EMULSAO ASFALTICA CATIONICA RR-2C PARA USO EM PAVIMENTACAO ASFALTICA (FORNECIMENTO COM BDI DIFERENCIADO) | E173: KG | F173: 0,4500000 | H173: 0
B174: COMPOSICAO | C174: 83362 | D174: ESPARGIDOR DE ASFALTO PRESSURIZADO, TANQUE 6 M3 COM ISOLAÇÃO TÉRMICA, AQUECIDO COM 2 MAÇARICOS, COM BARRA ESPARGIDORA 3,60 M, MONTADO SOBRE CAMINHÃO TOCO, PBT 14.300 KG, POTÊNCIA 185 CV | E174: CHP | F174: 0,0004000 | G174: 232.92 | H174: 0.09
B175: COMPOSICAO | C175: 88316 | D175: SERVENTE COM ENCARGOS COMPLEMENTARES | E175: H | F175: 0,0055000 | G175: 19.76 | H175: 0.1
B176: COMPOSICAO | C176: 89035 | D176: TRATOR DE PNEUS, POTÊNCIA 85 CV, TRAÇÃO 4X4, PESO COM LASTRO DE 4.675 KG | E176: CHP | F176: 0,0017000 | G176: 119.96 | H176: 0.2
B177: COMPOSICAO | C177: 89036 | D177: TRATOR DE PNEUS, POTÊNCIA 85 CV, TRAÇÃO 4X4, PESO COM LASTRO DE 4.675 KG | E177: CHI | F177: 0,0038000 | G177: 52.19 | H177: 0.19
B178: COMPOSICAO | C178: 91486 | D178: ESPARGIDOR DE ASFALTO PRESSURIZADO, TANQUE 6 M3 COM ISOLAÇÃO TÉRMICA, AQUECIDO COM 2 MAÇARICOS, COM BARRA ESPARGIDORA 3,60 M, MONTADO SOBRE CAMINHÃO TOCO, PBT 14.300 KG, POTÊNCIA 185 CV | E178: CHI | F178: 0,0051000 | G178: 66.18 | H178: 0.33
H179: 0
B180: PRODUÇÃO DA EQUIPE | E180: 1 | F180: CUSTO | H180: =SUM(H171:H179) -> 0.93
B181: TOTAL | H181: =H180/E180 -> 0.93 | I181: OK
B182: BDI % | H182: =1+$M$1 -> 1.2467
B183: TOTAL DO SERVIÇO - R$ | H183: =ROUND(H181*H182,2) -> 1.16
A185: 12 | B185: CODEVASF | E185: COMPOSIÇÃO DE PREÇO UNITÁRIO | I185: =H203 -> 121.32 | J185: =H205 -> 151.25
B186: OBRA: | C186: =$C$2 -> PAVIMENTAÇÃO ASFÁLTICA EM CBUQ - ESTRADA PARA O POVOADO DIAMANTE - LAGOA DOURADA/MG | G186: DATA: | H186: =$H$2 -> AGOSTO / 2023
B187: SERVIÇO: | C187: =VLOOKUP(A185,ORÇAMENTO!$A$10:$I$32,3) -> EXECUÇÃO DE PAVIMENTO COM APLICAÇÃO DE CONCRETO ASFÁLTICO USINADO A QUENTE (CBUQ), CAMADA DE ROLAMENTO - EXCLUSIVE TRANSPORTE | E187: SINAPI | F187: =VLOOKUP(A185,ORÇAMENTO!$A$10:$I$32,4) -> 95995 | G187: UNIDADE: | H187: =VLOOKUP(A185,ORÇAMENTO!$A$10:$I$32,5) -> M3
B189: TIPO ITEM | C189: CODIGO ITEM | D189: DESCRIÇÃO ITEM | E189: UNIDADE ITEM | F189: COEFICIENTE | G189: PRECO UNITARIO | H189: CUSTO TOTAL
B190: INSUMO | C190: 1518 | D190: CONCRETO BETUMINOSO USINADO A QUENTE (CBUQ) PARA PAVIMENTACAO ASFALTICA, PADRAO DNIT, FAIXA C, COM CAP 50/70 - AQUISICAO POSTO USINA (FORNECIMENTO COM BDI DIFERENCIADO) | E190: T | F190: 2,5548000 | H190: =ROUNDDOWN(F190*G190,2) -> 0
B191: COMPOSICAO | C191: 5835 | D191: VIBROACABADORA DE ASFALTO SOBRE ESTEIRAS, LARGURA DE PAVIMENTAÇÃO 1,90 M A 5,30 M, POTÊNCIA 105 HP CAPACIDADE 450 T/H | E191: CHP | F191: 0,0464000 | G191: 366,49 | H191: 17
B192: COMPOSICAO | C192: 5837 | D192: VIBROACABADORA DE ASFALTO SOBRE ESTEIRAS, LARGURA DE PAVIMENTAÇÃO 1,90 M A 5,30 M, POTÊNCIA 105 HP CAPACIDADE 450 T/H | E192: CHI | F192: 0,0949000 | G192: 147,82 | H192: 14.02
B193: COMPOSICAO | C193: 88314 | D193: RASTELEIRO COM ENCARGOS COMPLEMENTARES | E193: H | F193: 1,1301000 | G193: 26,52 | H193: 29.97
B194: COMPOSICAO | C194: 91386 | D194: CAMINHÃO BASCULANTE 10 M3, TRUCADO CABINE SIMPLES, PESO BRUTO TOTAL 23.000 KG, CARGA ÚTIL MÁXIMA 15.935 KG, DISTÂNCIA ENTRE EIXOS 4,80 M, POTÊNCIA 230 CV INCLUSIVE CAÇAMBA METÁLICA | E194: CHP | F194: 0,0464000 | G194: 228,50 | H194: 10.6
B195: COMPOSICAO | C195: 95631 | D195: ROLO COMPACTADOR VIBRATORIO TANDEM, ACO LISO, POTENCIA 125 HP, PESO SEM/COM LASTRO 10,20/11,65 T, LARGURA DE TRABALHO 1,73 M | E195: CHP | F195: 0,0805000 | G195: 210,29 | H195: 16.92
B196: COMPOSICAO | C196: 95632 | D196: ROLO COMPACTADOR VIBRATORIO TANDEM, ACO LISO, POTENCIA 125 HP, PESO SEM/COM LASTRO 10,20/11,65 T, LARGURA DE TRABALHO 1,73 M | E196: CHI | F196: 0,0607000 | G196: 83,23 | H196: 5.05
B197: COMPOSICAO | C197: 96155 | D197: TRATOR DE PNEUS COM POTÊNCIA DE 85 CV, TRAÇÃO 4X4, COM VASSOURA MECÂNICA ACOPLADA | E197: CHI | F197: 0,1071000 | G197: 56,63 | H197: 6.06
B198: COMPOSICAO | C198: 96157 | D198: TRATOR DE PNEUS COM POTÊNCIA DE 85 CV, TRAÇÃO 4X4, COM VASSOURA MECÂNICA ACOPLADA | E198: CHP | F198: 0,0341000 | G198: 128,67 | H198: 4.38
B199: COMPOSICAO | C199: 96463 | D199: ROLO COMPACTADOR DE PNEUS, ESTATICO, PRESSAO VARIAVEL, POTENCIA 110 HP, PESO SEM/COM LASTRO 10,8/27 T, LARGURA DE ROLAGEM 2,30 M | E199: CHP | F199: 0,0419000 | G199: 203,13 | H199: 8.51
B200: COMPOSICAO | C200: 96464 | D200: ROLO COMPACTADOR DE PNEUS, ESTATICO, PRESSAO VARIAVEL, POTENCIA 110 HP, PESO SEM/COM LASTRO 10,8/27 T, LARGURA DE ROLAGEM 2,30 M | E200: CHI | F200: 0,0990000 | G200: 89,07 | H200: 8.81
H201: 0
B202: PRODUÇÃO DA EQUIPE | E202: 1 | F202: CUSTO | H202: =SUM(H190:H201) -> 121.32
B203: TOTAL | H203: =H202/E202 -> 121.32 | I203: OK
B204: BDI % | H204: =1+$M$1 -> 1.2467
B205: TOTAL DO SERVIÇO - R$ | H205: =ROUND(H203*H204,2) -> 151.25
A207: 13 | B207: CODEVASF | E207: COMPOSIÇÃO DE PREÇO UNITÁRIO | I207: =H216 -> 1.61 | J207: =H218 -> 2.01
B208: OBRA: | C208: =$C$2 -> PAVIMENTAÇÃO ASFÁLTICA EM CBUQ - ESTRADA PARA O POVOADO DIAMANTE - LAGOA DOURADA/MG | G208: DATA: | H208: =$H$2 -> AGOSTO / 2023
B209: SERVIÇO: | C209: =VLOOKUP(A207,ORÇAMENTO!$A$10:$I$32,3) -> TRANSPORTE COM CAMINHÃO BASCULANTE, EM VIA URBANA PAVIMENTADA | E209: SINAPI | F209: =VLOOKUP(A207,ORÇAMENTO!$A$10:$I$32,4) -> 95877 | G209: UNIDADE: | H209: =VLOOKUP(A207,ORÇAMENTO!$A$10:$I$32,5) -> M3XKM
B211: TIPO ITEM | C211: CODIGO ITEM | D211: DESCRIÇÃO ITEM | E211: UNIDADE ITEM | F211: COEFICIENTE | G211: PRECO UNITARIO | H211: CUSTO TOTAL
B212: COMPOSICAO | C212: 89883 | D212: CAMINHÃO BASCULANTE 18 M3, COM CAVALO MECÂNICO DE CAPACIDADE MÁXIMA DE TRAÇÃO COMBINADO DE 45000 KG, POTÊNCIA 330 CV, INCLUSIVE SEMIREBOQUE COM CAÇAMBA METÁLICA | E212: CHP | F212: 0.0046 | G212: 314,64 | H212: =ROUNDDOWN(F212*G212,2) -> 1.44
B213: COMPOSICAO | C213: 89884 | D213: CAMINHÃO BASCULANTE 18 M3, COM CAVALO MECÂNICO DE CAPACIDADE MÁXIMA DE TRAÇÃO COMBINADO DE 45000 KG, POTÊNCIA 330 CV, INCLUSIVE SEMIREBOQUE COM CAÇAMBA METÁLICA | E213: CHI | F213: 0.002 | G213: 86,36 | H213: 0.17
H214: 0
B215: PRODUÇÃO DA EQUIPE | E215: 1 | F215: CUSTO | H215: =SUM(H212:H214) -> 1.61
B216: TOTAL | H216: =H215/E215 -> 1.61 | I216: OK
B217: BDI % | H217: =1+$M$1 -> 1.2467
B218: TOTAL DO SERVIÇO - R$ | H218: =ROUND(H216*H217,2) -> 2.01
A220: 14 | B220: CODEVASF | E220: COMPOSIÇÃO DE PREÇO UNITÁRIO | I220: =H229 -> 1.92 | J220: =H231 -> 2.39
B221: OBRA: | C221: =$C$2 -> PAVIMENTAÇÃO ASFÁLTICA EM CBUQ - ESTRADA PARA O POVOADO DIAMANTE - LAGOA DOURADA/MG | G221: DATA: | H221: =$H$2 -> AGOSTO / 2023
B222: SERVIÇO: | C222: =VLOOKUP(A220,ORÇAMENTO!$A$10:$I$32,3) -> TRANSPORTE COM CAMINHÃO CARROCERIA 9T, EM VIA URBANA PAVIMENTADA | E222: SINAPI | F222: =VLOOKUP(A220,ORÇAMENTO!$A$10:$I$32,4) -> 100947 | G222: UNIDADE: | H222: =VLOOKUP(A220,ORÇAMENTO!$A$10:$I$32,5) -> TXKM
B224: TIPO ITEM | C224: CODIGO ITEM | D224: DESCRIÇÃO ITEM | E224: UNIDADE ITEM | F224: COEFICIENTE | G224: PRECO UNITARIO | H224: CUSTO TOTAL
B225: COMPOSICAO | C225: 5824 | D225: CAMINHÃO TOCO, PBT 16.000 KG, CARGA ÚTIL MÁX. 10.685 KG, DIST. ENTRE EIXOS 4,8 M, POTÊNCIA 189 CV, INCLUSIVE CARROCERIA FIXA ABERTA DE MADEIRA P/ TRANSPORTE GERAL DE CARGA SECA, DIMEN. APROX. 2,5 X 7,00 X 0,50 M | E225: CHP | F225: 0.0093 | G225: 183,71 | H225: =ROUNDDOWN(F225*G225,2) -> 1.7
B226: COMPOSICAO | C226: 5826 | D226: CAMINHÃO TOCO, PBT 16.000 KG, CARGA ÚTIL MÁX. 10.685 KG, DIST. ENTRE EIXOS 4,8 M, POTÊNCIA 189 CV, INCLUSIVE CARROCERIA FIXA ABERTA DE MADEIRA P/ TRANSPORTE GERAL DE CARGA SECA, DIMEN. APROX. 2,5 X 7,00 X 0,50 M | E226: CHI | F226: 0,0040000 | G226: 57,00 | H226: 0.22
H227: 0
B228: PRODUÇÃO DA EQUIPE | E228: 1 | F228: CUSTO | H228: =SUM(H225:H227) -> 1.92
... 271 more rows

Sheet BDI SERV
B1: DETALHAMENTO DO BDI - SERVIÇOS
B4: Item | C4: Descrição dos Serviços | D4: % | E4: %
D5: PV | E5: CD
B7: 1 | C7: ADMINISTRAÇÃO CENTRAL | E7: 4.01
B8: 1.1 | C8: ESCRITÓRIO CENTRAL
B9: 1.2 | C9: VIAGENS
B10: 1.3 | C10: OUTROS
B12: 2 | C12: IMPOSTOS E TAXAS | D12: =SUM(D13:D16) -> 8.65 | E12: =SUM(E13:E16) -> 10.82
B13: 2.1 | C13: ISS (*) | D13: 5 | E13: =ROUND(D13*1.2515,2) -> 6.26
B14: 2.2 | C14: PIS | D14: 0.65 | E14: 0.81
B15: 2.3 | C15: Cofins | D15: 3 | E15: 3.75
B16: 2.4 | C16: CONTRIBUIÇÃO PREVIDENCIÁRIA SOBRE A RENDA BRUTA | D16: 0 | E16: 0
B18: 3 | C18: TAXA DE RISCO | E18: =SUM(E19:E22) -> 0.96
B19: 3.1 | C19: SEGURO | E19: 0.2
B20: 3.2 | C20: RISCO | E20: 0.56
B21: 3.3 | C21: GARANTIA | E21: 0.2
T22: =1/0.82 -> 1.219512195
B23: 4 | C23: DESPESAS FINANCEIRAS | E23: 1.11
B25: 5 | C25: LUCRO | E25: 7.3
C27: BDI - CALCULADO | E27: =ROUND((((1+(E7+E18)/100)*(1+E23/100)*(1+E25/100)/(1-D12/100)-1)*100),2) -> 24.67
A29: BDI = ((1+((AC+S+R+G)/100))x(1+DF/100)x(1+L/100)/(1-I/100)-1)*100
B31: BDI (CALCULADO): | D31: =ROUND((((1+((E7+E18)/100))*(1+E23/100)*(1+E25/100))/(1-D12/100)-1)*100,2) -> 24.67 | E31: %
A33: (*) ISS CONFORME LEI Nº 836/1978 E LEI COMPLEMENTAR Nº 244 / 2021
A37: BDI EM CONFORMIDADE COM OS ACÓRDÃOS Nº 2369/2011 e ACÓRDÃO Nº 2.622/2013 - TCU - PLENÁRIO

Sheet BDI FORN
B1: DETALHAMENTO DO BDI - FORNECIMENTO (MATERIAL ASFÁLTICO)
B4: Item | C4: Descrição dos Serviços | D4: % | E4: %
D5: PV | E5: CD
B7: 1 | C7: ADMINISTRAÇÃO CENTRAL | E7: 3.72
B8: 1.1 | C8: ESCRITÓRIO CENTRAL
B9: 1.2 | C9: VIAGENS
B10: 1.3 | C10: OUTROS
B12: 2 | C12: IMPOSTOS E TAXAS | D12: =SUM(D13:D16) -> 3.65 | E12: =SUM(E13:E16) -> 4.56
B13: 2.1 | C13: ISS (*) | E13: =ROUND(D13*1.2515,2) -> 0
B14: 2.2 | C14: PIS | D14: 0.65 | E14: 0.81
B15: 2.3 | C15: Cofins | D15: 3 | E15: 3.75
B16: 2.4 | C16: CONTRIBUIÇÃO PREVIDENCIÁRIA SOBRE A RENDA BRUTA | D16: 0 | E16: 0
B18: 3 | C18: TAXA DE RISCO | E18: =SUM(E19:E22) -> 0.82
B19: 3.1 | C19: SEGURO | E19: 0.16
B20: 3.2 | C20: RISCO | E20: 0.5
B21: 3.3 | C21: GARANTIA | E21: 0.16
B23: 4 | C23: DESPESAS FINANCEIRAS | E23: 0.94
B25: 5 | C25: LUCRO | E25: 5
C27: BDI - CALCULADO | E27: =ROUND((((1+(E7+E18)/100)*(1+E23/100)*(1+E25/100)/(1-D12/100)-1)*100),2) -> 15
A29: BDI = ((1+((AC+S+R+G)/100))x(1+DF/100)x(1+L/100)/(1-I/100)-1)*100
B31: BDI (CALCULADO): | D31: =ROUND((((1+((E7+E18)/100))*(1+E23/100)*(1+E25/100))/(1-D12/100)-1)*100,2) -> 15 | E31: %
A37: BDI EM CONFORMIDADE COM OS ACÓRDÃOS Nº 2369/2011 e ACÓRDÃO Nº 2.622/2013 - TCU - PLENÁRIO

Sheet CRONOGRAMA
B1: CRONOGRAMA FÍSICO-FINANCEIRO
B2: OBRA: | C2: =ORÇAMENTO!C5 -> PAVIMENTAÇÃO ASFÁLTICA EM CBUQ - ESTRADA PARA O POVOADO DIAMANTE - LAGOA DOURADA/MG | F2: VALOR: | G2: =ORÇAMENTO!I50 -> 3696706.93
F3: PRAZO: | G3: 180 DIAS
B5: ITEM | C5: ETAPAS/DESCRIÇAO | D5: FISICO/ FINANCEIRO | E5: TOTAL ETAPAS | F5: MÊS 1 | G5: MÊS 2 | H5: MÊS 3 | I5: MÊS 4 | J5: MÊS 5 | K5: MÊS 6 | L5: TOTAL
A6: A | B6: =VLOOKUP(A6,ORÇAMENTO!$A$9:$I$50,2) -> 1 | C6: =VLOOKUP(A6,ORÇAMENTO!$A$9:$I$50,3) -> SERVIÇOS PRELIMINARES | D6: FISICO | E6: =ROUND(E7/$G$2,4) -> 0.0764 | F6: 0.25 | G6: 0.15 | H6: 0.15 | I6: 0.15 | J6: 0.15 | K6: 0.15 | L6: =SUM(F6:K6) -> 1
D7: FINANCEIRO | E7: =ORÇAMENTO!I9 -> 282536.91 | F7: =ROUND($E$7*F6,2) -> 70634.23 | G7: =ROUND($E$7*G6,2) -> 42380.54 | H7: =ROUND($E$7*H6,2) -> 42380.54 | I7: =ROUND($E$7*I6,2) -> 42380.54 | J7: 42380.54 | K7: 42380.54 | L7: =SUM(F7:K7) -> 282536.93
A8: B | B8: =VLOOKUP(A8,ORÇAMENTO!$A$9:$I$50,2) -> 2 | C8: =VLOOKUP(A8,ORÇAMENTO!$A$9:$I$50,3) -> TERRAPLANAGEM E PAVIMENTAÇÃO | D8: FISICO | E8: =ROUND(E9/$G$2,4) -> 0.1097 | F8: 0.1 | G8: 0.2 | H8: 0.2 | I8: 0.2 | J8: 0.2 | K8: 0.1 | L8: =SUM(F8:K8) -> 1
D9: FINANCEIRO | E9: =ORÇAMENTO!I15 -> 405644.5 | F9: =ROUND($E$9*F8,2) -> 40564.45 | G9: =ROUND($E$9*G8,2) -> 81128.9 | H9: =ROUND($E$9*H8,2) -> 81128.9 | I9: =ROUND($E$9*I8,2) -> 81128.9 | J9: 81128.9 | K9: 40564.45 | L9: =SUM(F9:K9) -> 405644.5
A10: C | B10: =VLOOKUP(A10,ORÇAMENTO!$A$9:$I$50,2) -> 3 | C10: =VLOOKUP(A10,ORÇAMENTO!$A$9:$I$50,3) -> TRANSPORTE DE MATERIAIS | D10: FISICO | E10: =ROUND(E11/$G$2,4) -> 0.0604 | F10: 0.1 | G10: 0.2 | H10: 0.2 | I10: 0.2 | J10: 0.2 | K10: 0.1 | L10: =SUM(F10:K10) -> 1
D11: FINANCEIRO | E11: =ORÇAMENTO!I23 -> 223251 | F11: =ROUND($E$11*F10,2) -> 22325.1 | G11: =ROUND($E$11*G10,2) -> 44650.2 | H11: =ROUND($E$11*H10,2) -> 44650.2 | I11: =ROUND($E$11*I10,2) -> 44650.2 | J11: 44650.2 | K11: 22325.1 | L11: =SUM(F11:K11)-0.04 -> 223250.96
A12: D | B12: =VLOOKUP(A12,ORÇAMENTO!$A$9:$I$50,2) -> 4 | C12: =VLOOKUP(A12,ORÇAMENTO!$A$9:$I$50,3) -> TRANSPORTE DE MATERIAL ASFÁLTICO (BDI DIFERENCIADO) | D12: FISICO | E12: =ROUND(E13/$G$2,4) -> 0.0373 | F12: 0.05 | G12: 0.2 | H12: 0.25 | I12: 0.25 | J12: 0.2 | K12: 0.05 | L12: =SUM(F12:K12) -> 1
D13: FINANCEIRO | E13: =ORÇAMENTO!I26 -> 137738 | F13: =ROUND($E$13*F12,2) -> 6886.9 | G13: =ROUND($E$13*G12,2) -> 27547.6 | H13: =ROUND($E$13*H12,2) -> 34434.5 | I13: =ROUND($E$13*I12,2) -> 34434.5 | J13: 27547.6 | K13: 6886.9 | L13: =SUM(F13:K13)-0.02 -> 137737.98
A14: E | B14: =VLOOKUP(A14,ORÇAMENTO!$A$9:$I$50,2) -> 5 | C14: =VLOOKUP(A14,ORÇAMENTO!$A$9:$I$50,3) -> DRENAGEM E OBRAS COMPLEMENTARES | D14: FISICO | E14: =ROUND(E15/$G$2,4) -> 0.2029 | F14: 0.1 | G14: 0.2 | H14: 0.2 | I14: 0.2 | J14: 0.2 | K14: 0.1 | L14: =SUM(F14:K14) -> 1
D15: FINANCEIRO | E15: =ORÇAMENTO!I31 -> 750034.48 | F15: =ROUND($E$15*F14,2) -> 75003.45 | G15: 150006.9 | H15: 150006.9 | I15: =ROUND($E$15*I14,2) -> 150006.9 | J15: 150006.9 | K15: 75003.45 | L15: =SUM(F15:K15)-0.02 -> 750034.48
A16: F | B16: =VLOOKUP(A16,ORÇAMENTO!$A$9:$I$50,2) -> 6 | C16: =VLOOKUP(A16,ORÇAMENTO!$A$9:$I$50,3) -> FORNECIMENTOS - MATERIAL ASFÁLTICO (BDI DIFERENCIADO) | D16: FISICO | E16: =ROUND(E17/$G$2,4) -> 0.5133 | F16: 0.05 | G16: 0.2 | H16: 0.25 | I16: 0.25 | J16: 0.2 | K16: 0.05 | L16: =SUM(F16:K16) -> 1
D17: FINANCEIRO | E17: =ORÇAMENTO!I46 -> 1897502.04 | F17: =ROUND($E$17*F16,2) -> 94875.1 | G17: =ROUND($E$17*G16,2) -> 379500.41 | H17: =ROUND($E$17*H16,2) -> 474375.51 | I17: =ROUND($E$17*I16,2) -> 474375.51 | J17: 379500.41 | K17: 94875.1 | L17: =SUM(F17:K17)-0.02 -> 1897502.02
B18: TOTAL | D18: FISICO | E18: =SUM(F18:K18) -> 1.000000011 | F18: =F19/$E$19 -> 0.08393665927 | G18: =G19/$E$19 -> 0.196178535 | H18: =H19/$E$19 -> 0.2237062785 | I18: 0.2237062785 | J18: 0.196178535 | K18: 0.07629372448 | L18: =SUM(F18:K18) -> 1.000000011
D19: FINANCEIRO | E19: =E11+E9+E7+E13+E17+E15 -> 3696706.93 | F19: =F11+F9+F7+F13+F17+F15 -> 310289.23 | G19: =G11+G9+G7+G13+G17+G15 -> 725214.55 | H19: 826976.55 | I19: =I11+I9+I7+I13+I17+I15 -> 826976.55 | J19: 725214.55 | K19: 282035.54 | L19: =SUM(F19:K19)-0.04 -> 3696706.93
B21: OBSERVAÇÕES:
